bitfinex/quotes_BTCUSD_20251012
["timestamp","ask_amount","ask_price","bid_price","bid_amount"]
[1760237145307,1.40429618,110550.0,110540.0,0.07977327]
[1760237145508,1.37166618,110550.0,110540.0,0.07977327]
[1760237145869,1.40429618,110550.0,110540.0,0.07977327]
[1760237146066,1.37166618,110550.0,110540.0,0.07977327]
[1760237147239,1.33082618,110550.0,110540.0,0.07977327]
[1760237147494,1.35415618,110550.0,110540.0,0.07977327]
[1760237148246,1.82916991,110550.0,110540.0,0.001]
[1760237148484,5.8651823,110550.0,110540.0,0.001]
[1760237148859,5.88217274,110550.0,110540.0,0.001]
[1760237149305,0.52092998,110540.0,110530.0,0.00097328]
[1760237149510,1.34776022,110540.0,110530.0,0.00097328]
[1760237149720,0.59439998,110540.0,110530.0,0.00097328]
[1760237149920,1.40372022,110540.0,110530.0,0.00097328]
[1760237151942,1.40372022,110540.0,110530.0,0.00197328]
[1760237152996,5.47413543,110540.0,110530.0,0.00197328]
[1760237157095,5.50136801,110540.0,110530.0,0.00197328]
[1760237159189,4.69204777,110540.0,110530.0,0.00197328]
[1760237159447,5.50136801,110540.0,110530.0,0.00197328]
[1760237162097,0.52097909,110510.0,110500.0,0.10177552]
[1760237162316,1.34777933,110510.0,110500.0,0.07177424]
[1760237162535,1.40338933,110510.0,110500.0,0.00015062]
[1760237164059,0.99872921,110510.0,110500.0,0.00015062]
[1760237164506,1.40338933,110510.0,110500.0,0.00015062]
[1760237164716,0.96608921,110510.0,110500.0,0.00115062]
[1760237164930,0.34,110510.0,110500.0,0.03130252]
[1760237165135,0.92563921,110510.0,110500.0,0.03130252]
[1760237165545,0.74466012,110510.0,110500.0,0.03130252]
[1760237165760,0.24014061,110530.0,110510.0,0.0301519]
[1760237165761,0.20750061,110530.0,110510.0,0.0301519]
[1760237165966,0.01419059,110540.0,110520.0,0.01809627]
[1760237166175,0.74466012,110530.0,110520.0,0.04824817]
[1760237166398,0.58558103,110550.0,110530.0,0.0301519]
[1760237166615,0.59462671,110550.0,110520.0,0.05515189]
[1760237166836,0.59462671,110550.0,110520.0,0.0823756]
[1760237167318,0.34,110540.0,110520.0,0.0823756]
[1760237167578,0.40466012,110530.0,110520.0,0.0823756]
[1760237167796,0.74466012,110530.0,110520.0,0.0823756]
[1760237168010,0.74466012,110530.0,110520.0,0.0833756]
[1760237169360,0.74466012,110530.0,110520.0,0.0823756]
[1760237169580,0.35979823,110530.0,110520.0,0.0843756]
[1760237170252,0.70077146,110540.0,110520.0,0.10247187]
[1760237171183,0.70077146,110540.0,110520.0,0.10047187]
[1760237171630,0.34097323,110540.0,110520.0,0.10047187]
[1760237172499,0.34097323,110540.0,110520.0,0.10147187]
[1760237172718,0.34097323,110540.0,110520.0,0.0833756]
[1760237173159,0.34097323,110540.0,110520.0,0.08396813]
[1760237175788,0.34097323,110540.0,110520.0,0.05674442]
[1760237176009,0.34097323,110540.0,110530.0,0.02722269]
[1760237177325,0.34097323,110540.0,110530.0,0.02822269]
[1760237178184,0.92985007,110540.0,110530.0,0.02822269]
[1760237178367,0.34097323,110540.0,110530.0,0.02822269]
[1760237179283,0.52190321,110540.0,110530.0,0.02822269]
[1760237179482,0.34097323,110540.0,110530.0,0.02822269]
[1760237180310,0.52190321,110540.0,110530.0,0.02822269]
[1760237180704,1.15123005,110540.0,110530.0,0.02822269]
[1760237180926,1.11078005,110540.0,110530.0,0.001]
[1760237183934,1.15123005,110540.0,110530.0,0.001]
[1760237185631,1.11078005,110540.0,110530.0,0.001]
[1760237187730,0.92985007,110540.0,110530.0,0.001]
[1760237187932,0.34097323,110540.0,110530.0,0.001]
[1760237188354,0.34097323,110540.0,110530.0,0.07424652]
[1760237191425,0.34097323,110540.0,110530.0,0.10146793]
[1760237193501,0.70069664,110540.0,110530.0,0.10146793]
[1760237194110,0.34097323,110540.0,110530.0,0.10146793]
[1760237194495,0.34097323,110540.0,110530.0,0.16658055]
[1760237195554,0.70069664,110540.0,110530.0,0.14848592]
[1760237196927,0.70069664,110540.0,110530.0,0.0833733]
[1760237198337,0.70069664,110540.0,110530.0,0.05837331]
[1760237198338,0.88162662,110540.0,110530.0,0.05837331]
[1760237198622,0.91917662,110540.0,110530.0,0.05837331]
[1760237198825,0.88162662,110540.0,110530.0,0.05837331]
[1760237199630,0.34097323,110540.0,110530.0,0.05837331]
[1760237199835,0.70069664,110540.0,110530.0,0.05837331]
[1760237200036,0.70069664,110540.0,110530.0,0.07646794]
[1760237201601,0.88162662,110540.0,110530.0,0.07646794]
[1760237201805,0.88162662,110540.0,110530.0,0.05837331]
[1760237205100,0.54065339,110540.0,110530.0,0.05837331]
[1760237206232,0.1809148,110550.0,110540.0,0.0301519]
[1760237206404,0.54063821,110550.0,110540.0,0.04824489]
[1760237206637,0.54063821,110550.0,110540.0,0.0301519]
[1760237207183,0.57920821,110550.0,110540.0,0.0301519]
[1760237207630,0.57920821,110550.0,110540.0,0.0311519]
[1760237208038,0.54063821,110550.0,110540.0,0.0311519]
[1760237209827,0.95260821,110550.0,110540.0,0.0311519]
[1760237211065,0.77169341,110550.0,110540.0,0.0311519]
[1760237211260,0.95260821,110550.0,110540.0,0.0311519]
[1760237211510,0.91920821,110550.0,110540.0,0.0311519]
[1760237211670,0.91980056,110550.0,110540.0,0.0311519]
[1760237211864,0.95320056,110550.0,110540.0,0.0311519]
[1760237213612,0.91980056,110550.0,110540.0,0.0311519]
[1760237213815,0.88123056,110550.0,110540.0,0.0311519]
[1760237214625,0.90273056,110550.0,110540.0,0.0311519]
[1760237216522,0.88123056,110550.0,110540.0,0.0311519]
[1760237216742,0.90273056,110550.0,110540.0,0.0311519]
[1760237218073,0.91980056,110550.0,110540.0,0.0311519]
[1760237218273,0.95320056,110550.0,110540.0,0.0311519]
[1760237219075,0.91980056,110550.0,110540.0,0.0311519]
[1760237219877,0.95320056,110550.0,110540.0,0.0311519]
[1760237222102,0.95320056,110550.0,110540.0,0.001]
[1760237222515,0.91980056,110550.0,110540.0,0.001]
[1760237223150,0.95323056,110550.0,110540.0,0.001]
[1760237226714,0.95323056,110550.0,110540.0,0.201]
[1760237227752,0.52150715,110550.0,110540.0,0.201]
[1760237227957,0.92153056,110550.0,110540.0,0.201]
[1760237228378,0.95496056,110550.0,110540.0,0.201]
[1760237231673,1.40498821,110550.0,110540.0,0.201]
[1760237232642,1.80986374,110550.0,110540.0,0.201]
[1760237232859,5.86608974,110550.0,110540.0,0.201]
[1760237233280,1.69558998,110540.0,110530.0,0.00097329]
[1760237233509,2.52253104,110540.0,110530.0,0.00097329]
[1760237233681,3.05097253,110540.0,110530.0,1e-08]
[1760237234249,3.08213405,110540.0,110530.0,1e-08]
[1760237234456,2.67725852,110540.0,110530.0,1e-08]
[1760237234878,3.08213405,110540.0,110530.0,1e-08]
[1760237235298,3.06516315,110540.0,110530.0,1e-08]
[1760237235469,3.08211142,110540.0,110530.0,1e-08]
[1760237236314,3.06516315,110540.0,110530.0,1e-08]
[1760237236489,2.66028762,110540.0,110530.0,1e-08]
[1760237238113,2.68752265,110540.0,110530.0,1e-08]
[1760237239804,1.07860166,110540.0,110530.0,1e-08]
[1760237240002,1.40441104,110540.0,110530.0,1e-08]
[1760237240245,0.62610551,110540.0,110530.0,1e-08]
[1760237240454,0.19869715,110550.0,110530.0,1e-08]
[1760237240656,0.19869715,110550.0,110530.0,0.04824654]
[1760237240657,0.40487553,110540.0,110530.0,0.04824654]
[1760237240864,0.58580551,110540.0,110530.0,0.04824654]
[1760237241068,0.74487553,110540.0,110530.0,0.04824654]
[1760237241268,0.92580551,110540.0,110530.0,0.04824654]
[1760237241671,0.98090069,110540.0,110530.0,0.04824654]
[1760237242413,1.00401069,110540.0,110530.0,0.03015191]
[1760237242828,1.00401069,110540.0,110530.0,1e-08]
[1760237242829,1.05463069,110540.0,110530.0,1e-08]
[1760237243826,5.11085669,110540.0,110530.0,1e-08]
[1760237244253,1.05463069,110540.0,110530.0,1e-08]
[1760237244998,1.05463069,110540.0,110530.0,0.00100001]
[1760237245511,1.05463069,110540.0,110530.0,1e-08]
[1760237245929,1.05463069,110540.0,110530.0,0.00100001]
[1760237246590,5.11085669,110540.0,110530.0,0.00100001]
[1760237247235,5.11085669,110540.0,110530.0,1e-08]
[1760237247439,5.11085669,110540.0,110530.0,0.00100001]
[1760237247887,4.65088598,110540.0,110530.0,0.00100001]
[1760237248108,5.11085669,110540.0,110530.0,1e-08]
[1760237251843,5.19957603,110540.0,110530.0,1e-08]
[1760237252067,5.11085669,110540.0,110530.0,1e-08]
[1760237252980,5.13809219,110540.0,110530.0,1e-08]
[1760237257254,5.15502824,110540.0,110530.0,1e-08]
[1760237257465,5.13809219,110540.0,110530.0,1e-08]
[1760237258137,1.08186619,110540.0,110530.0,1e-08]
[1760237258342,0.98090069,110540.0,110530.0,1e-08]
[1760237258599,1.05373069,110540.0,110530.0,1e-08]
[1760237259014,0.53812998,110540.0,110530.0,1e-08]
[1760237259235,0.64090069,110540.0,110530.0,1e-08]
[1760237259445,0.65866786,110550.0,110530.0,1e-08]
[1760237259688,0.18092998,110540.0,110530.0,0.01809464]
[1760237259893,0.99899542,110540.0,110530.0,0.03015191]
[1760237260102,0.98090069,110540.0,110530.0,0.03015191]
[1760237260311,0.34,110540.0,110530.0,0.03015191]
[1760237260527,0.34,110540.0,110530.0,0.04111754]
[1760237260744,0.34,110540.0,110530.0,0.04824654]
[1760237261581,0.34,110540.0,110530.0,0.04924654]
[1760237261997,0.34,110540.0,110530.0,0.04824654]
[1760237262199,0.34,110540.0,110530.0,0.03015191]
[1760237262835,0.79997071,110540.0,110530.0,0.03015191]
[1760237263187,0.79997071,110540.0,110530.0,0.03115191]
[1760237263784,0.98090069,110540.0,110530.0,0.03015191]
[1760237264071,0.98090069,110540.0,110530.0,0.00100001]
[1760237264072,1.05373069,110540.0,110530.0,0.00100001]
[1760237264973,1.05373069,110540.0,110530.0,1e-08]
[1760237266407,1.05373069,110540.0,110530.0,0.00100001]
[1760237266740,1.05373069,110540.0,110530.0,1e-08]
[1760237267168,1.05373069,110540.0,110530.0,0.00100001]
[1760237272253,5.10995669,110540.0,110530.0,0.00100001]
[1760237273660,5.11195669,110540.0,110530.0,0.00100001]
[1760237274090,5.10995669,110540.0,110530.0,0.00100001]
[1760237276251,1.05373069,110540.0,110530.0,0.00100001]
[1760237276515,5.10995669,110540.0,110530.0,0.00100001]
[1760237277516,1.07067538,110540.0,110530.0,0.00100001]
[1760237277651,5.12690138,110540.0,110530.0,1e-08]
[1760237277848,5.12690138,110540.0,110500.0,0.07162362]
[1760237278149,0.9980598,110510.0,110500.0,0.07162362]
[1760237278363,0.9809498,110510.0,110500.0,0.07162362]
[1760237278565,0.9809498,110510.0,110500.0,0.00177792]
[1760237279927,0.9809498,110510.0,110500.0,0.03192982]
[1760237280329,0.9809498,110510.0,110500.0,0.03292982]
[1760237282550,0.52097909,110510.0,110500.0,0.03292982]
[1760237282755,0.9809498,110510.0,110500.0,0.03292982]
[1760237283239,1.0026198,110510.0,110500.0,0.03292982]
[1760237283471,0.9809498,110510.0,110500.0,0.03292982]
[1760237283674,0.92596706,110510.0,110500.0,0.03292982]
[1760237285500,0.52097909,110510.0,110500.0,0.03292982]
[1760237285870,0.92596706,110510.0,110500.0,0.03292982]
[1760237287621,0.94763706,110510.0,110500.0,0.03292982]
[1760237287821,0.92596706,110510.0,110500.0,0.03292982]
[1760237289516,0.96472706,110510.0,110500.0,0.03292982]
[1760237290618,1.40178503,110510.0,110500.0,0.00277792]
[1760237290819,0.92596706,110510.0,110500.0,0.00277792]
[1760237291331,0.92596706,110510.0,110500.0,0.03292982]
[1760237291537,0.88098702,110510.0,110500.0,0.03292982]
[1760237291961,0.90265702,110510.0,110500.0,0.03292982]
[1760237292177,0.95181702,110510.0,110500.0,0.03292982]
[1760237293201,0.95181702,110510.0,110500.0,0.00277792]
[1760237293439,0.77083793,110510.0,110500.0,0.00277792]
[1760237293646,0.95181702,110510.0,110500.0,0.00277792]
[1760237294651,0.91974702,110510.0,110500.0,0.00277792]
[1760237296030,0.95181702,110510.0,110500.0,0.00277792]
[1760237298854,0.91974702,110510.0,110500.0,0.00277792]
[1760237301529,0.55973909,110510.0,110500.0,0.00277792]
[1760237301733,0.90265702,110510.0,110500.0,0.00277792]
[1760237302095,0.88098702,110510.0,110500.0,0.03292982]
[1760237302299,0.54098702,110510.0,110500.0,0.03292982]
[1760237304215,0.95181702,110510.0,110500.0,0.03292982]
[1760237304513,0.91974702,110510.0,110500.0,0.03292982]
[1760237304716,0.52097909,110510.0,110500.0,0.03292982]
[1760237304926,0.56714275,110520.0,110510.0,0.0301519]
[1760237304927,0.18096346,110520.0,110510.0,0.0301519]
[1760237305133,0.36000793,110520.0,110510.0,0.0301519]
[1760237305339,0.34,110520.0,110510.0,0.0301519]
[1760237305544,0.54095611,110530.0,110510.0,0.0301519]
[1760237305755,0.88095611,110530.0,110510.0,0.0301519]
[1760237305974,0.36000793,110530.0,110510.0,0.0301519]
[1760237306181,0.36000793,110530.0,110510.0,0.0311519]
[1760237306422,0.34,110520.0,110510.0,0.0311519]
[1760237306629,0.34,110520.0,110510.0,0.0301519]
[1760237306832,0.34,110520.0,110510.0,0.0482498]
[1760237307319,0.34,110520.0,110510.0,0.0301519]
[1760237307320,0.88097065,110520.0,110510.0,0.0301519]
[1760237307500,0.70000793,110520.0,110510.0,0.0301519]
[1760237307676,0.88097065,110520.0,110510.0,0.0301519]
[1760237308650,0.70000793,110520.0,110510.0,0.0301519]
[1760237308810,0.70000793,110520.0,110510.0,0.0331519]
[1760237309012,0.34,110520.0,110510.0,0.0331519]
[1760237309195,0.70000793,110520.0,110510.0,0.0331519]
[1760237310430,0.70000793,110520.0,110510.0,0.03433707]
[1760237312507,0.70000793,110520.0,110510.0,0.05243497]
[1760237314975,0.88097065,110520.0,110510.0,0.03433707]
[1760237315197,0.70000793,110520.0,110510.0,0.03433707]
[1760237316710,1.26206858,110520.0,110510.0,0.03433707]
[1760237316918,1.24097858,110520.0,110510.0,0.03433707]
[1760237317319,1.24097858,110520.0,110510.0,0.00418517]
[1760237317320,1.31200858,110520.0,110510.0,0.00418517]
[1760237317752,1.31200858,110520.0,110510.0,0.00218517]
[1760237318560,1.31200858,110520.0,110510.0,0.00118517]
[1760237318903,1.31200858,110520.0,110510.0,0.00218517]
[1760237323224,0.91933065,110520.0,110510.0,0.00218517]
[1760237323654,1.31386858,110520.0,110510.0,0.00218517]
[1760237326713,1.31386858,110520.0,110510.0,0.01028517]
[1760237329027,0.59385272,110520.0,110510.0,0.01028517]
[1760237329228,1.31386858,110520.0,110510.0,0.01028517]
[1760237339398,0.59385272,110520.0,110510.0,0.01028517]
[1760237339579,1.27933858,110520.0,110510.0,0.01028517]
[1760237339796,1.31386858,110520.0,110510.0,0.01028517]
[1760237342165,0.00904977,110500.0,110470.0,0.21734713]
[1760237342371,0.00904977,110500.0,110460.0,0.07162362]
[1760237342372,0.52104462,110470.0,110460.0,0.07162362]
[1760237342571,0.34,110450.0,110430.0,0.16511261]
[1760237342689,0.88108534,110450.0,110430.0,0.06511262]
[1760237342891,0.88108534,110450.0,110440.0,0.0301519]
[1760237343091,0.88108534,110450.0,110440.0,0.01810938]
[1760237343316,0.89018932,110450.0,110420.0,0.21775814]
[1760237343516,0.18109468,110440.0,110420.0,0.21775814]
[1760237343918,0.1811102,110430.0,110420.0,0.05264553]
[1760237344363,0.54111813,110430.0,110420.0,0.0004]
[1760237344671,0.54111813,110430.0,110420.0,0.0325519]
[1760237344881,0.54111813,110430.0,110420.0,0.0305519]
[1760237345065,0.1811102,110430.0,110420.0,0.0305519]
[1760237345325,0.1811102,110430.0,110420.0,0.0325519]
[1760237345513,0.1811102,110430.0,110420.0,0.0305519]
[1760237345745,0.1887056,110430.0,110420.0,0.0325519]
[1760237345952,0.5287056,110430.0,110420.0,0.0325519]
[1760237346366,0.88871353,110430.0,110420.0,0.0305519]
[1760237346601,0.88871353,110430.0,110420.0,0.0325519]
[1760237346801,0.88871353,110430.0,110420.0,0.0335519]
[1760237347225,1.31986146,110430.0,110420.0,0.0034]
[1760237347433,1.31986146,110430.0,110420.0,1e-08]
[1760237347646,5.40334765,110430.0,110420.0,1e-08]
[1760237347850,5.04333972,110430.0,110420.0,1e-08]
[1760237348063,0.5211266,110420.0,110410.0,0.0004]
[1760237348266,0.89771453,110420.0,110410.0,0.0004]
[1760237348467,0.95227453,110420.0,110410.0,0.0004]
[1760237348630,0.76652851,110420.0,110410.0,0.00633176]
[1760237348828,0.94765511,110420.0,110410.0,0.00633176]
[1760237349035,0.91546511,110420.0,110410.0,0.00633176]
[1760237349265,0.94765511,110420.0,110410.0,0.00633176]
[1760237349627,1.17807116,110420.0,110410.0,0.00633176]
[1760237353592,1.04880587,110420.0,110410.0,0.00633176]
[1760237357647,0.58764718,110420.0,110410.0,0.00633176]
[1760237357850,1.04880587,110420.0,110410.0,0.00633176]
[1760237358644,4.57738542,110400.0,110390.0,1e-08]
[1760237358845,4.57738542,110400.0,110380.0,1e-08]
[1760237358846,4.57740183,110390.0,110380.0,1e-08]
[1760237359074,0.52125793,110340.0,110330.0,0.07162362]
[1760237359281,0.98241662,110340.0,110330.0,0.10177552]
[1760237359457,0.18128017,110330.0,110310.0,0.13133174]
[1760237359787,0.18133019,110330.0,110310.0,0.13133174]
[1760237360960,0.18133019,110330.0,110320.0,0.0301519]
[1760237362887,0.18133019,110330.0,110320.0,0.0311519]
[1760237363092,0.18133019,110330.0,110320.0,0.0301519]
[1760237363492,0.18133019,110330.0,110320.0,0.0311519]
[1760237364365,0.18133019,110330.0,110310.0,0.03133175]
[1760237364366,0.52132366,110300.0,110290.0,0.0004]
[1760237364578,0.99906235,110300.0,110290.0,0.0004]
[1760237364815,1.02902717,110300.0,110290.0,0.0004]
[1760237365626,1.00651526,110300.0,110290.0,0.0004]
[1760237366551,1.00651526,110300.0,110290.0,0.0014]
[1760237366761,1.00651526,110300.0,110290.0,0.0004]
[1760237367596,1.03870526,110300.0,110290.0,0.0004]
[1760237369031,1.03870526,110300.0,110250.0,0.00907029]
[1760237369032,0.52120589,110250.0,110240.0,0.0004]
[1760237369238,0.98236458,110250.0,110240.0,0.0004]
[1760237369451,1.05350458,110250.0,110240.0,0.0004]
[1760237369855,1.02131458,110250.0,110240.0,0.0004]
[1760237370048,1.05350458,110250.0,110240.0,0.0004]
[1760237370259,1.05350458,110250.0,110240.0,0.01200689]
[1760237370829,1.05350458,110250.0,110240.0,0.01100689]
[1760237372442,0.52120589,110250.0,110240.0,0.01100689]
[1760237372638,0.52120589,110250.0,110240.0,0.04115879]
[1760237374439,0.34,110250.0,110240.0,0.04115879]
[1760237374646,0.72318941,110290.0,110250.0,0.22555563]
[1760237374868,0.72318982,110290.0,110270.0,0.0301519]
[1760237375066,0.18135654,110280.0,110270.0,0.0301519]
[1760237375290,0.18135654,110280.0,110260.0,0.0301519]
[1760237375622,0.64251523,110280.0,110260.0,0.0301519]
[1760237375846,0.47022569,110290.0,110260.0,0.21154042]
[1760237376051,0.65156698,110290.0,110260.0,0.2164685]
[1760237376275,0.68124168,110270.0,110260.0,0.0301519]
[1760237376502,0.23395657,110300.0,110270.0,0.0301519]
[1760237376746,0.23395657,110300.0,110260.0,0.18138944]
[1760237376747,0.18135654,110280.0,110260.0,0.0301519]
[1760237376935,0.18135654,110280.0,110260.0,0.0311519]
[1760237377082,0.52135654,110280.0,110260.0,0.0301519]
[1760237377982,0.34,110280.0,110260.0,0.21153968]
[1760237378181,0.34,110280.0,110270.0,0.00921674]
[1760237378383,0.34,110280.0,110260.0,0.21646776]
[1760237378555,0.34,110280.0,110270.0,0.01813729]
[1760237378764,0.65156589,110290.0,110270.0,0.01813729]
[1760237378997,0.65156589,110290.0,110260.0,0.13507997]
[1760237378998,0.18135771,110280.0,110260.0,0.13507997]
[1760237379220,0.18135771,110280.0,110260.0,0.31646836]
[1760237379458,0.65156589,110290.0,110260.0,0.31646836]
[1760237380050,0.65156589,110290.0,110260.0,0.34375347]
[1760237380291,0.99156589,110290.0,110280.0,0.03787578]
[1760237380484,1.01437589,110290.0,110280.0,0.03787578]
[1760237381031,1.03027589,110290.0,110280.0,0.00772388]
[1760237381232,1.0847678,110290.0,110280.0,0.00772388]
[1760237381456,1.0847678,110290.0,110280.0,0.0078745]
[1760237387128,0.180384,110250.0,110240.0,0.02768511]
[1760237387422,0.64256212,110260.0,110240.0,0.00055082]
[1760237387643,0.68289212,110260.0,110240.0,0.00055082]
[1760237387839,0.68289212,110260.0,110240.0,0.03070272]
[1760237387971,0.18140589,110250.0,110240.0,0.03070272]
[1760237388170,0.52140589,110250.0,110240.0,0.03070272]
[1760237388424,0.54457589,110250.0,110240.0,0.03070272]
[1760237388770,0.52140589,110250.0,110240.0,0.03070272]
[1760237389422,0.34,110250.0,110240.0,0.03070272]
[1760237390082,0.52140589,110250.0,110240.0,0.03070272]
[1760237392077,1.00573458,110250.0,110240.0,0.03070272]
[1760237392276,0.98256458,110250.0,110240.0,0.03070272]
[1760237392471,1.00573458,110250.0,110240.0,0.03070272]
[1760237392672,1.00573458,110250.0,110240.0,0.03308156]
[1760237393402,1.02289458,110250.0,110240.0,0.03308156]
[1760237394340,1.02289458,110250.0,110240.0,0.00292966]
[1760237396614,1.03975702,110250.0,110240.0,0.00292966]
[1760237397380,1.07375702,110250.0,110240.0,0.00292966]
[1760237397819,1.03975702,110250.0,110240.0,0.00292966]
[1760237400441,1.07375702,110250.0,110240.0,0.00292966]
[1760237401541,0.57859833,110250.0,110240.0,0.00292966]
[1760237401683,1.07087702,110250.0,110240.0,0.00292966]
[1760237403494,1.1199042,110250.0,110240.0,0.00292966]
[1760237403697,5.17458949,110250.0,110240.0,1e-08]
[1760237403902,5.20362555,110250.0,110240.0,1e-08]
[1760237404688,5.22304398,110250.0,110240.0,1e-08]
[1760237405053,5.22404398,110250.0,110240.0,1e-08]
[1760237405259,5.29334489,110250.0,110240.0,1e-08]
[1760237405707,0.52147173,110210.0,110200.0,0.1]
[1760237405911,0.98263042,110210.0,110200.0,0.13065467]
[1760237406557,0.98263042,110210.0,110200.0,0.1028829]
[1760237406558,1.01910042,110210.0,110200.0,0.1028829]
[1760237406731,1.06706843,110210.0,110200.0,0.1028829]
[1760237407124,1.01208949,110210.0,110200.0,0.1028829]
[1760237407332,1.01531339,110210.0,110200.0,0.1028829]
[1760237407508,1.07176401,110210.0,110200.0,0.1028829]
[1760237407719,1.22942135,110210.0,110200.0,0.1028829]
[1760237407933,1.22942135,110210.0,110200.0,0.1038829]
[1760237407934,1.14070201,110210.0,110200.0,0.1038829]
[1760237408380,1.15753582,110210.0,110200.0,0.1028829]
[1760237408592,5.21376182,110210.0,110200.0,0.1028829]
[1760237410687,5.21376182,110210.0,110200.0,0.0756092]
[1760237410895,5.21376182,110210.0,110170.0,8e-05]
[1760237410896,0.52152114,110180.0,110170.0,8e-05]
[1760237411105,0.52152114,110180.0,110170.0,0.00058333]
[1760237411106,0.99834983,110180.0,110170.0,0.00058333]
[1760237411320,1.04818589,110180.0,110170.0,0.00058333]
[1760237411522,1.07930589,110180.0,110170.0,0.00236925]
[1760237411724,1.10672045,110180.0,110170.0,0.00236925]
[1760237411948,1.05026983,110180.0,110170.0,0.00236925]
[1760237412146,0.52152114,110180.0,110170.0,0.00236925]
[1760237413172,0.98267983,110180.0,110170.0,0.00236925]
[1760237413319,0.99069044,110180.0,110170.0,0.00236925]
[1760237415353,1.02716044,110180.0,110170.0,0.00236925]
[1760237415596,1.15884121,110180.0,110170.0,0.00236925]
[1760237415809,0.52953175,110180.0,110170.0,0.00236925]
[1760237417142,0.3819501,110210.0,110180.0,0.21167049]
[1760237417143,0.07260069,110210.0,110180.0,0.21167049]
[1760237417358,0.07260069,110210.0,110190.0,0.01815046]
[1760237417359,0.25407344,110210.0,110190.0,0.01815046]
[1760237417558,0.26172809,110210.0,110190.0,0.01815046]
[1760237417764,0.1814882,110200.0,110190.0,0.04830236]
[1760237417967,0.1814882,110200.0,110180.0,0.0301519]
[1760237417968,0.18150677,110190.0,110180.0,0.0301519]
[1760237418597,1.11434623,110190.0,110180.0,0.0301519]
[1760237418802,0.52152114,110180.0,110170.0,0.00058333]
[1760237419003,1.1300306,110180.0,110170.0,0.00058333]
[1760237419211,1.1508306,110180.0,110170.0,0.00058333]
[1760237422170,1.23954994,110180.0,110170.0,0.00058333]
[1760237422403,1.1819506,110180.0,110170.0,0.00058333]
[1760237423297,1.20202251,110180.0,110170.0,0.00058333]
[1760237423473,1.23105857,110180.0,110170.0,0.00058333]
[1760237423701,1.23105857,110180.0,110170.0,0.00236925]
[1760237424323,1.2752809,110180.0,110170.0,0.00236925]
[1760237424529,1.36400024,110180.0,110170.0,0.00236925]
[1760237424733,5.42022624,110180.0,110170.0,0.00236925]
[1760237425812,5.48730752,110180.0,110170.0,0.00236925]
[1760237426418,5.48730752,110180.0,110170.0,1e-08]
[1760237426625,0.34,110150.0,110140.0,0.0004]
[1760237426837,0.94850946,110150.0,110140.0,0.00090368]
[1760237427067,0.55804058,110150.0,110140.0,0.00090368]
[1760237427295,0.52157058,110150.0,110140.0,0.00090368]
[1760237427875,0.54237058,110150.0,110140.0,0.00090368]
[1760237428107,0.54237058,110150.0,110140.0,0.00190368]
[1760237428312,1.18200004,110150.0,110140.0,0.00190368]
[1760237429883,1.15088004,110150.0,110140.0,0.00190368]
[1760237430092,1.18200004,110150.0,110140.0,0.00190368]
[1760237430489,1.15088004,110150.0,110140.0,0.00190368]
[1760237430692,1.18200004,110150.0,110140.0,0.00190368]
[1760237430986,1.27071936,110150.0,110140.0,0.00190368]
[1760237431719,1.15088004,110150.0,110140.0,0.00190368]
[1760237432131,0.52157058,110150.0,110140.0,0.00190368]
[1760237432348,1.11441004,110150.0,110140.0,0.00190368]
[1760237432513,1.13665004,110150.0,110140.0,0.00190368]
[1760237432717,1.15269004,110150.0,110140.0,0.00190368]
[1760237433740,0.55985058,110150.0,110140.0,0.00190368]
[1760237433950,1.15269004,110150.0,110140.0,0.00190368]
[1760237434813,1.18628004,110150.0,110140.0,0.00190368]
[1760237435038,1.27499938,110150.0,110140.0,0.00190368]
[1760237435270,1.31194041,110150.0,110140.0,0.00190368]
[1760237435494,5.42461703,110150.0,110140.0,1e-08]
[1760237435718,0.20167546,110130.0,110120.0,0.0004]
[1760237435945,1.16742404,110130.0,110120.0,0.0005508]
[1760237436201,1.36842398,110130.0,110120.0,1e-08]
[1760237437094,0.18167756,110090.0,110070.0,0.01817025]
[1760237437336,0.61093419,110080.0,110070.0,0.00015026]
[1760237437519,0.7745255,110080.0,110070.0,0.00015026]
[1760237437796,0.7745255,110080.0,110070.0,0.00610952]
[1760237438023,1.1367655,110080.0,110070.0,0.00610952]
[1760237438470,1.17287741,110080.0,110070.0,0.00610952]
[1760237438694,1.17287741,110080.0,110070.0,0.00710952]
[1760237439157,1.20646741,110080.0,110070.0,0.00710952]
[1760237440140,1.20646741,110080.0,110070.0,0.00610952]
[1760237440573,1.26291803,110080.0,110070.0,0.00610952]
[1760237440791,1.35163737,110080.0,110070.0,0.00610952]
[1760237441012,1.36843671,110080.0,110070.0,0.00610952]
[1760237441231,1.35163737,110080.0,110070.0,0.00610952]
[1760237441467,1.35974177,110080.0,110070.0,0.00610952]
[1760237443146,1.42674746,110080.0,110070.0,0.00610952]
[1760237444388,0.79463043,110060.0,110050.0,0.0283]
[1760237444605,0.81031043,110060.0,110050.0,0.02835025]
[1760237444810,0.86160649,110060.0,110050.0,0.02835025]
[1760237445015,0.89586649,110060.0,110050.0,0.02835025]
[1760237445253,0.92650447,110060.0,110050.0,0.02835025]
[1760237445655,0.92328105,110060.0,110050.0,0.02835025]
[1760237446902,0.02007191,110060.0,110050.0,0.02835025]
[1760237447109,0.02817631,110080.0,110060.0,0.18171906]
[1760237447317,0.2098627,110080.0,110060.0,0.18171906]
[1760237447524,0.80270216,110080.0,110050.0,0.21914224]
[1760237447745,0.8914215,110080.0,110050.0,0.21914224]
[1760237447954,0.70973511,110080.0,110060.0,0.18171724]
[1760237448168,0.02817631,110080.0,110060.0,0.18171724]
[1760237448394,0.62101577,110080.0,110060.0,0.18171724]
[1760237448601,0.0081044,110080.0,110070.0,0.18170255]
[1760237449042,0.21081653,110100.0,110070.0,0.19078767]
[1760237449246,0.18167036,110090.0,110060.0,0.19080319]
[1760237449452,0.18170292,110070.0,110050.0,0.02835025]
[1760237449631,0.77452569,110080.0,110060.0,0.18171848]
[1760237449845,0.01777649,110070.0,110060.0,0.18171848]
[1760237450239,0.20557954,110080.0,110060.0,0.18171848]
[1760237450395,0.00919193,110080.0,110070.0,0.18170255]
[1760237450608,0.02707276,110080.0,110070.0,0.18170255]
[1760237450835,0.20876012,110080.0,110060.0,0.18171848]
[1760237451042,0.18170937,110070.0,110050.0,0.21008409]
[1760237451236,0.77454883,110070.0,110050.0,0.02835025]
[1760237451464,0.77454883,110070.0,110050.0,0.21008529]
[1760237451662,0.9172743,110080.0,110050.0,0.21008529]
[1760237451889,0.9395343,110080.0,110050.0,0.21008529]
[1760237452040,0.18170491,110070.0,110050.0,0.21008529]
[1760237452240,0.18170491,110070.0,110050.0,0.21008294]
[1760237452241,0.01809473,110060.0,110050.0,0.21008294]
[1760237453044,0.01809473,110070.0,110050.0,0.21008294]
[1760237453285,0.19979798,110070.0,110050.0,0.21008294]
[1760237453485,0.18170325,110070.0,110050.0,0.02835025]
[1760237453706,0.32443484,110080.0,110050.0,0.21008235]